[Event "December 12 Late 2023"]
[Site "https://www.chess.com"]
[Date "2023.12.12"]
[Round "11"]
[White "Goryachkina, Aleksandra"]
[Black "Roberson, Peter T"]
[Result "1-0"]
[Board "33"]
[TimeControl "180+1"]
[WhiteFideId "4147103"]
[BlackFideId "412384"]
[WhiteElo "2665"]
[BlackElo "2573"]
[WhiteTeam "FID"]
[BlackTeam "ENG"]
[WhiteClock "0:01:35"]
[BlackClock "0:00:00"]

1. e4 {[%clk 0:03:00]}  c5 {[%clk 0:02:54]} 2. Nf3 {[%clk 0:03:00]}  d6 {[%clk 0:02:54]} 3. Bb5+ {[%clk 0:03:00]}  Bd7 {[%clk 0:02:53]} 4. Bxd7+ {[%clk 0:03:00]}  Nxd7 {[%clk 0:02:54]} 5. c3 {[%clk 0:02:56]}  Ngf6 {[%clk 0:02:54]} 6. Qe2 {[%clk 0:02:57]}  e6 {[%clk 0:02:53]} 7. d4 {[%clk 0:02:57]}  Be7 {[%clk 0:02:51]} 8. e5 {[%clk 0:02:50]}  Nd5 {[%clk 0:02:49]} 9. c4 {[%clk 0:02:49]}  N5b6 {[%clk 0:02:28]} 10. exd6 {[%clk 0:02:48]}  Bxd6 {[%clk 0:02:29]} 11. b4 {[%clk 0:02:48]}  cxb4 {[%clk 0:01:19]} 12. c5 {[%clk 0:02:47]}  Bxc5 {[%clk 0:01:20]} 13. dxc5 {[%clk 0:02:46]}  Nxc5 {[%clk 0:01:21]} 14. O-O {[%clk 0:02:45]}  Qd3 {[%clk 0:01:15]} 15. Qe5 {[%clk 0:02:41]}  Nbd7 {[%clk 0:01:09]} 16. Qxg7 {[%clk 0:02:35]}  O-O-O {[%clk 0:01:09]} 17. Be3 {[%clk 0:02:28]}  Rhg8 {[%clk 0:01:00]} 18. Qxf7 {[%clk 0:01:57]}  Rdf8 {[%clk 0:00:43]} 19. Qh5 {[%clk 0:01:55]}  Rxf3 {[%clk 0:00:05]} 20. Qxf3 {[%clk 0:01:47]}  Ne5 {[%clk 0:00:06]} 21. Qh3 {[%clk 0:01:41]}  Qe2 {[%clk 0:00:03]} 22. Nd2 {[%clk 0:01:37]}  Ncd3 {[%clk 0:00:02]} 23. Qxe6+ {[%clk 0:01:35]}  Kc7 {[%clk 0:00:00]} 24. Qxg8 {[%clk 0:01:35]} 1-0

[Event "December 12 Late 2023"]
[Site "https://www.chess.com"]
[Date "2023.12.12"]
[Round "11"]
[White "Tikhonov, Viacheslav"]
[Black "Karttunen, Mika"]
[Result "0-1"]
[Board "34"]
[TimeControl "180+1"]
[WhiteFideId "44196407"]
[BlackFideId "502081"]
[WhiteElo "2532"]
[BlackElo "2645"]
[WhiteTeam "RUS"]
[BlackTeam "FIN"]
[WhiteClock "0:00:00"]
[BlackClock "0:00:40"]

1. e4 {[%clk 0:03:00]}  c6 {[%clk 0:02:55]} 2. d4 {[%clk 0:03:00]}  d5 {[%clk 0:02:56]} 3. Nc3 {[%clk 0:03:01]}  dxe4 {[%clk 0:02:54]} 4. Nxe4 {[%clk 0:03:02]}  Nf6 {[%clk 0:02:54]} 5. Nxf6+ {[%clk 0:03:02]}  exf6 {[%clk 0:02:54]} 6. Bc4 {[%clk 0:03:03]}  Qe7+ {[%clk 0:02:46]} 7. Qe2 {[%clk 0:02:45]}  Be6 {[%clk 0:02:42]} 8. Bxe6 {[%clk 0:02:38]}  Qxe6 {[%clk 0:02:42]} 9. Bf4 {[%clk 0:02:35]}  Na6 {[%clk 0:02:38]} 10. O-O-O {[%clk 0:02:29]}  O-O-O {[%clk 0:02:38]} 11. Qxe6+ {[%clk 0:02:28]}  fxe6 {[%clk 0:02:38]} 12. Nf3 {[%clk 0:02:24]}  g5 {[%clk 0:02:24]} 13. Bg3 {[%clk 0:02:24]}  h5 {[%clk 0:02:22]} 14. h3 {[%clk 0:02:16]}  Bd6 {[%clk 0:02:00]} 15. Bxd6 {[%clk 0:02:09]}  Rxd6 {[%clk 0:02:00]} 16. Rhe1 {[%clk 0:02:04]}  Nc7 {[%clk 0:02:00]} 17. c4 {[%clk 0:01:42]}  Rhd8 {[%clk 0:01:58]} 18. Rd2 {[%clk 0:01:31]}  g4 {[%clk 0:01:49]} 19. hxg4 {[%clk 0:01:30]}  hxg4 {[%clk 0:01:49]} 20. Nh4 {[%clk 0:00:57]}  Rxd4 {[%clk 0:01:49]} 21. Rxd4 {[%clk 0:00:58]}  Rxd4 {[%clk 0:01:49]} 22. b3 {[%clk 0:00:59]}  a5 {[%clk 0:01:24]} 23. Kc2 {[%clk 0:00:54]}  b5 {[%clk 0:01:24]} 24. Kc3 {[%clk 0:00:47]}  Rf4 {[%clk 0:01:20]} 25. Re2 {[%clk 0:00:44]}  b4+ {[%clk 0:01:16]} 26. Kd3 {[%clk 0:00:42]}  e5 {[%clk 0:01:13]} 27. g3 {[%clk 0:00:32]}  Rd4+ {[%clk 0:01:12]} 28. Ke3 {[%clk 0:00:30]}  Ne6 {[%clk 0:01:08]} 29. Ng2 {[%clk 0:00:17]}  a4 {[%clk 0:01:07]} 30. Rc2 {[%clk 0:00:10]}  axb3 {[%clk 0:01:07]} 31. axb3 {[%clk 0:00:10]}  Nc5 {[%clk 0:01:07]} 32. Ne1 {[%clk 0:00:08]}  Re4+ {[%clk 0:00:58]} 33. Kd2 {[%clk 0:00:08]}  Nxb3+ {[%clk 0:00:58]} 34. Kd1 {[%clk 0:00:08]}  Nc5 {[%clk 0:00:51]} 35. Ng2 {[%clk 0:00:05]}  b3 {[%clk 0:00:50]} 36. Rb2 {[%clk 0:00:03]}  Rxc4 {[%clk 0:00:49]} 37. Ne3 {[%clk 0:00:03]}  Rd4+ {[%clk 0:00:50]} 38. Ke2 {[%clk 0:00:03]}  Kc7 {[%clk 0:00:49]} 39. Rb1 {[%clk 0:00:03]}  Kb6 {[%clk 0:00:49]} 40. Rh1 {[%clk 0:00:01]}  Kb5 {[%clk 0:00:48]} 41. Rh8 {[%clk 0:00:02]}  Kb4 {[%clk 0:00:45]} 42. Rb8+ {[%clk 0:00:02]}  Kc3 {[%clk 0:00:45]} 43. Nd1+ {[%clk 0:00:01]}  Kc2 {[%clk 0:00:44]} 44. Ne3+ {[%clk 0:00:01]}  Kc1 {[%clk 0:00:44]} 45. Rb6 {[%clk 0:00:00]}  b2 {[%clk 0:00:40]} 0-1

[Event "December 12 Late 2023"]
[Site "https://www.chess.com"]
[Date "2023.12.12"]
[Round "11"]
[White "Rojas Alarcon, Julian Antonio"]
[Black "Dubessay, Bastien"]
[Result "1-0"]
[Board "36"]
[TimeControl "180+1"]
[WhiteFideId "5107407"]
[BlackFideId "650048"]
[WhiteElo "2628"]
[BlackElo "2462"]
[WhiteTeam "MEX"]
[BlackTeam "FRA"]
[WhiteClock "0:02:14"]
[BlackClock "0:01:52"]

1. c4 {[%clk 0:02:59]}  e6 {[%clk 0:02:59]} 2. Nf3 {[%clk 0:02:59]}  d5 {[%clk 0:02:55]} 3. g3 {[%clk 0:02:59]}  d4 {[%clk 0:02:49]} 4. Bg2 {[%clk 0:02:57]}  Nc6 {[%clk 0:02:46]} 5. O-O {[%clk 0:02:56]}  Nf6 {[%clk 0:02:47]} 6. e3 {[%clk 0:02:56]}  Bc5 {[%clk 0:02:35]} 7. d3 {[%clk 0:02:49]}  O-O {[%clk 0:02:34]} 8. Na3 {[%clk 0:02:46]}  e5 {[%clk 0:02:30]} 9. exd4 {[%clk 0:02:44]}  exd4 {[%clk 0:02:30]} 10. Nc2 {[%clk 0:02:42]}  a5 {[%clk 0:02:30]} 11. a3 {[%clk 0:02:40]}  a4 {[%clk 0:02:26]} 12. Bg5 {[%clk 0:02:30]}  h6 {[%clk 0:02:25]} 13. Bxf6 {[%clk 0:02:30]}  Qxf6 {[%clk 0:02:26]} 14. Nd2 {[%clk 0:02:31]}  Bf5 {[%clk 0:01:59]} 15. Ne4 {[%clk 0:02:29]}  Bxe4 {[%clk 0:02:00]} 16. Bxe4 {[%clk 0:02:28]}  Na5 {[%clk 0:02:01]} 17. Qh5 {[%clk 0:02:22]}  c6 {[%clk 0:01:56]} 18. Qxc5 {[%clk 0:02:19]}  Nb3 {[%clk 0:01:56]} 19. Qb6 {[%clk 0:02:19]}  Nxa1 {[%clk 0:01:56]} 20. Rxa1 {[%clk 0:02:18]}  Qe7 {[%clk 0:01:52]} 21. Nxd4 {[%clk 0:02:14]} 1-0

[Event "December 12 Late 2023"]
[Site "https://www.chess.com"]
[Date "2023.12.12"]
[Round "11"]
[White "yaguigor"]
[Black "Szpar, Milosz"]
[Result "0-1"]
[Board "37"]
[TimeControl "180+1"]
[BlackFideId "1184989"]
[WhiteElo "2512"]
[BlackElo "2851"]
[BlackTeam "POL"]
[WhiteClock "0:00:01"]
[BlackClock "0:01:38"]

1. e4 {[%clk 0:03:00]}  e6 {[%clk 0:02:59]} 2. d4 {[%clk 0:03:00]}  d5 {[%clk 0:03:00]} 3. Nc3 {[%clk 0:03:00]}  Nf6 {[%clk 0:02:59]} 4. e5 {[%clk 0:03:00]}  Nfd7 {[%clk 0:02:59]} 5. f4 {[%clk 0:03:01]}  c5 {[%clk 0:03:00]} 6. Nf3 {[%clk 0:03:01]}  Nc6 {[%clk 0:03:00]} 7. Be3 {[%clk 0:03:02]}  Be7 {[%clk 0:03:00]} 8. Qd2 {[%clk 0:03:01]}  O-O {[%clk 0:03:01]} 9. dxc5 {[%clk 0:02:58]}  Qa5 {[%clk 0:03:01]} 10. Nb5 {[%clk 0:02:40]}  Qxd2+ {[%clk 0:02:58]} 11. Kxd2 {[%clk 0:02:41]}  Nxc5 {[%clk 0:02:59]} 12. Bd3 {[%clk 0:02:32]}  Bd7 {[%clk 0:02:59]} 13. Nbd4 {[%clk 0:02:31]}  Rac8 {[%clk 0:02:53]} 14. a3 {[%clk 0:02:29]}  Rfd8 {[%clk 0:02:49]} 15. Rhe1 {[%clk 0:02:23]}  Na5 {[%clk 0:02:41]} 16. b4 {[%clk 0:02:17]}  Ne4+ {[%clk 0:02:29]} 17. Kc1 {[%clk 0:01:38]}  Nc4 {[%clk 0:02:26]} 18. Bxe4 {[%clk 0:01:33]}  dxe4 {[%clk 0:02:25]} 19. Nd2 {[%clk 0:01:28]}  Ba4 {[%clk 0:02:23]} 20. N2b3 {[%clk 0:01:06]}  Bxb3 {[%clk 0:01:49]} 21. Nxb3 {[%clk 0:01:04]}  Nxa3 {[%clk 0:01:49]} 22. Bc5 {[%clk 0:00:45]}  Nxc2 {[%clk 0:01:44]} 23. Kxc2 {[%clk 0:00:40]}  b6 {[%clk 0:01:45]} 24. Rxa7 {[%clk 0:00:39]}  Bf8 {[%clk 0:01:45]} 25. Rxe4 {[%clk 0:00:30]}  bxc5 {[%clk 0:01:44]} 26. bxc5 {[%clk 0:00:23]}  Bxc5 {[%clk 0:01:44]} 27. Nxc5 {[%clk 0:00:15]}  Rxc5+ {[%clk 0:01:45]} 28. Kb3 {[%clk 0:00:15]}  h5 {[%clk 0:01:45]} 29. Rc4 {[%clk 0:00:10]}  Rd3+ {[%clk 0:01:38]} 30. Kb4 {[%clk 0:00:10]}  Rxc4+ {[%clk 0:01:39]} 31. Kxc4 {[%clk 0:00:10]}  Rd2 {[%clk 0:01:40]} 32. g3 {[%clk 0:00:09]}  Rxh2 {[%clk 0:01:40]} 33. Ra3 {[%clk 0:00:08]}  Rh3 {[%clk 0:01:40]} 34. Kd4 {[%clk 0:00:08]}  Kh7 {[%clk 0:01:40]} 35. Ra7 {[%clk 0:00:01]}  Kg6 {[%clk 0:01:38]} 0-1

[Event "December 12 Late 2023"]
[Site "https://www.chess.com"]
[Date "2023.12.12"]
[Round "11"]
[White "Morris-Suzuki, Alan H"]
[Black "Brodsky, David"]
[Result "0-1"]
[Board "38"]
[TimeControl "180+1"]
[WhiteFideId "30933218"]
[BlackFideId "2073250"]
[WhiteElo "2534"]
[BlackElo "2778"]
[WhiteTeam "USA"]
[BlackTeam "USA"]
[WhiteClock "0:00:01"]
[BlackClock "0:00:03"]

1. Nf3 {[%clk 0:02:59]}  c5 {[%clk 0:02:57]} 2. g3 {[%clk 0:02:57]}  Nc6 {[%clk 0:02:57]} 3. Bg2 {[%clk 0:02:58]}  g6 {[%clk 0:02:58]} 4. O-O {[%clk 0:02:58]}  Bg7 {[%clk 0:02:59]} 5. d3 {[%clk 0:02:58]}  d5 {[%clk 0:02:57]} 6. Nc3 {[%clk 0:02:53]}  Nf6 {[%clk 0:02:53]} 7. e4 {[%clk 0:02:52]}  dxe4 {[%clk 0:02:52]} 8. dxe4 {[%clk 0:02:48]}  Qxd1 {[%clk 0:02:53]} 9. Rxd1 {[%clk 0:02:48]}  Bg4 {[%clk 0:02:53]} 10. Be3 {[%clk 0:02:45]}  Nd7 {[%clk 0:02:42]} 11. Nd5 {[%clk 0:02:22]}  Rc8 {[%clk 0:02:39]} 12. c3 {[%clk 0:02:16]}  Nde5 {[%clk 0:02:16]} 13. Nxe5 {[%clk 0:02:06]}  Nxe5 {[%clk 0:02:07]} 14. Rf1 {[%clk 0:01:53]}  e6 {[%clk 0:01:55]} 15. Nf4 {[%clk 0:01:30]}  g5 {[%clk 0:01:54]} 16. Nh3 {[%clk 0:01:19]}  h6 {[%clk 0:01:51]} 17. f3 {[%clk 0:01:08]}  Bxh3 {[%clk 0:01:51]} 18. Bxh3 {[%clk 0:01:07]}  Nc4 {[%clk 0:01:51]} 19. Bf2 {[%clk 0:00:51]}  b6 {[%clk 0:01:15]} 20. Rfc1 {[%clk 0:00:29]}  Nxb2 {[%clk 0:01:12]} 21. Bf1 {[%clk 0:00:29]}  c4 {[%clk 0:01:03]} 22. Bd4 {[%clk 0:00:28]}  Bxd4+ {[%clk 0:00:39]} 23. cxd4 {[%clk 0:00:28]}  Ke7 {[%clk 0:00:39]} 24. Rc2 {[%clk 0:00:24]}  Nd3 {[%clk 0:00:21]} 25. Rd1 {[%clk 0:00:21]}  Rhd8 {[%clk 0:00:11]} 26. Bxd3 {[%clk 0:00:20]}  cxd3 {[%clk 0:00:12]} 27. Rxc8 {[%clk 0:00:20]}  Rxc8 {[%clk 0:00:13]} 28. Rxd3 {[%clk 0:00:20]}  Rc2 {[%clk 0:00:13]} 29. Ra3 {[%clk 0:00:18]}  a5 {[%clk 0:00:14]} 30. Rb3 {[%clk 0:00:15]}  Rxa2 {[%clk 0:00:14]} 31. Rxb6 {[%clk 0:00:16]}  a4 {[%clk 0:00:10]} 32. Ra6 {[%clk 0:00:16]}  a3 {[%clk 0:00:10]} 33. h4 {[%clk 0:00:10]}  gxh4 {[%clk 0:00:09]} 34. gxh4 {[%clk 0:00:10]}  Kf6 {[%clk 0:00:05]} 35. Ra5 {[%clk 0:00:08]}  Ke7 {[%clk 0:00:05]} 36. Ra6 {[%clk 0:00:08]}  Kd7 {[%clk 0:00:05]} 37. Kh1 {[%clk 0:00:05]}  Kc7 {[%clk 0:00:05]} 38. Kg1 {[%clk 0:00:05]}  Kb7 {[%clk 0:00:05]} 39. Ra4 {[%clk 0:00:05]}  Kb6 {[%clk 0:00:05]} 40. Kh1 {[%clk 0:00:05]}  Kb5 {[%clk 0:00:05]} 41. Ra8 {[%clk 0:00:05]}  Kb4 {[%clk 0:00:05]} 42. d5 {[%clk 0:00:06]}  exd5 {[%clk 0:00:04]} 43. exd5 {[%clk 0:00:06]}  Rd2 {[%clk 0:00:05]} 44. Rb8+ {[%clk 0:00:04]}  Kc3 {[%clk 0:00:03]} 45. Rc8+ {[%clk 0:00:04]}  Kb3 {[%clk 0:00:03]} 46. Rb8+ {[%clk 0:00:05]}  Kc2 {[%clk 0:00:02]} 47. Rc8+ {[%clk 0:00:05]}  Kb2 {[%clk 0:00:03]} 48. Rb8+ {[%clk 0:00:05]}  Ka1 {[%clk 0:00:03]} 49. Ra8 {[%clk 0:00:04]}  a2 {[%clk 0:00:03]} 50. Ra5 {[%clk 0:00:03]}  Kb1 {[%clk 0:00:03]} 51. d6 {[%clk 0:00:02]}  a1=Q {[%clk 0:00:03]} 52. Rxa1+ {[%clk 0:00:01]}  Kxa1 {[%clk 0:00:03]} 0-1

[Event "December 12 Late 2023"]
[Site "https://www.chess.com"]
[Date "2023.12.12"]
[Round "11"]
[White "Chylewski, Patryk"]
[Black "Solon, Nathan"]
[Result "0-1"]
[Board "39"]
[TimeControl "180+1"]
[WhiteFideId "1186191"]
[BlackFideId "2017229"]
[WhiteElo "2520"]
[BlackElo "2654"]
[WhiteTeam "POL"]
[BlackTeam "USA"]
[WhiteClock "0:00:02"]
[BlackClock "0:00:25"]

1. c4 {[%clk 0:03:00]}  c6 {[%clk 0:02:58]} 2. Nf3 {[%clk 0:02:51]}  d5 {[%clk 0:02:59]} 3. d4 {[%clk 0:02:51]}  Nf6 {[%clk 0:02:58]} 4. e3 {[%clk 0:02:51]}  e6 {[%clk 0:02:58]} 5. Bd3 {[%clk 0:02:49]}  dxc4 {[%clk 0:02:58]} 6. Bxc4 {[%clk 0:02:50]}  Nbd7 {[%clk 0:02:58]} 7. O-O {[%clk 0:02:48]}  Bd6 {[%clk 0:02:58]} 8. Qe2 {[%clk 0:02:44]}  O-O {[%clk 0:02:57]} 9. Rd1 {[%clk 0:02:43]}  Qc7 {[%clk 0:02:56]} 10. b3 {[%clk 0:02:38]}  e5 {[%clk 0:02:55]} 11. Bb2 {[%clk 0:02:19]}  e4 {[%clk 0:02:54]} 12. Nfd2 {[%clk 0:02:01]}  b5 {[%clk 0:02:53]} 13. h3 {[%clk 0:01:51]}  bxc4 {[%clk 0:02:51]} 14. bxc4 {[%clk 0:01:52]}  c5 {[%clk 0:02:46]} 15. Nb3 {[%clk 0:01:51]}  Ba6 {[%clk 0:02:41]} 16. Na3 {[%clk 0:01:48]}  Rab8 {[%clk 0:02:40]} 17. Rac1 {[%clk 0:01:48]}  Rfc8 {[%clk 0:02:38]} 18. Nb5 {[%clk 0:01:41]}  Bxb5 {[%clk 0:02:34]} 19. cxb5 {[%clk 0:01:42]}  c4 {[%clk 0:02:21]} 20. Nc5 {[%clk 0:01:33]}  Bxc5 {[%clk 0:02:13]} 21. Rxc4 {[%clk 0:01:33]}  Rxb5 {[%clk 0:02:06]} 22. dxc5 {[%clk 0:01:28]}  Rxc5 {[%clk 0:02:05]} 23. Rxc5 {[%clk 0:01:23]}  Qxc5 {[%clk 0:02:06]} 24. Qa6 {[%clk 0:01:15]}  Rb8 {[%clk 0:01:44]} 25. Bd4 {[%clk 0:01:12]}  Qc2 {[%clk 0:01:39]} 26. Rf1 {[%clk 0:01:12]}  h6 {[%clk 0:01:24]} 27. Qxa7 {[%clk 0:01:10]}  Rb1 {[%clk 0:01:21]} 28. Rxb1 {[%clk 0:01:02]}  Qxb1+ {[%clk 0:01:22]} 29. Kh2 {[%clk 0:01:02]}  Qf1 {[%clk 0:01:19]} 30. Bxf6 {[%clk 0:00:23]}  Nxf6 {[%clk 0:01:18]} 31. Qb8+ {[%clk 0:00:23]}  Kh7 {[%clk 0:01:18]} 32. Qf4 {[%clk 0:00:23]}  Qb5 {[%clk 0:01:09]} 33. Qc7 {[%clk 0:00:19]}  Qd5 {[%clk 0:00:54]} 34. a4 {[%clk 0:00:18]}  Nd7 {[%clk 0:00:54]} 35. a5 {[%clk 0:00:09]}  Nc5 {[%clk 0:00:50]} 36. Qf4 {[%clk 0:00:03]}  Nd3 {[%clk 0:00:40]} 37. Qg3 {[%clk 0:00:01]}  Qxa5 {[%clk 0:00:38]} 38. Qg4 {[%clk 0:00:01]}  Qd5 {[%clk 0:00:37]} 39. h4 {[%clk 0:00:01]}  Nxf2 {[%clk 0:00:35]} 40. Qf4 {[%clk 0:00:01]}  Nd3 {[%clk 0:00:31]} 41. Qf1 {[%clk 0:00:01]}  Qe5+ {[%clk 0:00:31]} 42. Kg1 {[%clk 0:00:01]}  Qf6 {[%clk 0:00:25]} 43. Qd1 {[%clk 0:00:01]}  Qf2+ {[%clk 0:00:24]} 44. Kh1 {[%clk 0:00:01]}  Qxh4+ {[%clk 0:00:25]} 45. Kg1 {[%clk 0:00:01]}  Qf2+ {[%clk 0:00:23]} 46. Kh1 {[%clk 0:00:01]}  Qxe3 {[%clk 0:00:24]} 47. Kh2 {[%clk 0:00:01]}  Qf4+ {[%clk 0:00:23]} 48. Kg1 {[%clk 0:00:01]}  Qf2+ {[%clk 0:00:23]} 49. Kh2 {[%clk 0:00:01]}  Qh4+ {[%clk 0:00:23]} 50. Kg1 {[%clk 0:00:02]}  Qe1+ {[%clk 0:00:24]} 51. Qxe1 {[%clk 0:00:02]}  Nxe1 {[%clk 0:00:25]} 52. Kf2 {[%clk 0:00:02]}  Nd3+ {[%clk 0:00:25]} 53. Ke3 {[%clk 0:00:03]}  f5 {[%clk 0:00:25]} 54. g4 {[%clk 0:00:02]}  Kg6 {[%clk 0:00:25]} 0-1

[Event "December 12 Late 2023"]
[Site "https://www.chess.com"]
[Date "2023.12.12"]
[Round "11"]
[White "Tokhirjonova, Gulrukhbegim"]
[Black "Lin, Bryan Enming"]
[Result "0-1"]
[Board "40"]
[TimeControl "180+1"]
[WhiteFideId "14203626"]
[BlackFideId "30987121"]
[WhiteElo "2631"]
[BlackElo "2531"]
[WhiteTeam "USA"]
[BlackTeam "USA"]
[WhiteClock "0:00:33"]
[BlackClock "0:00:33"]

1. e4 {[%clk 0:03:00]}  e5 {[%clk 0:02:59]} 2. Nf3 {[%clk 0:02:59]}  Nc6 {[%clk 0:03:00]} 3. Bb5 {[%clk 0:02:59]}  a6 {[%clk 0:03:00]} 4. Ba4 {[%clk 0:02:59]}  Nf6 {[%clk 0:03:01]} 5. d3 {[%clk 0:02:58]}  b5 {[%clk 0:03:00]} 6. Bb3 {[%clk 0:02:58]}  Be7 {[%clk 0:03:01]} 7. O-O {[%clk 0:02:56]}  O-O {[%clk 0:03:00]} 8. c3 {[%clk 0:02:56]}  d6 {[%clk 0:03:00]} 9. h3 {[%clk 0:02:56]}  Na5 {[%clk 0:02:59]} 10. Bc2 {[%clk 0:02:56]}  c5 {[%clk 0:02:59]} 11. Re1 {[%clk 0:02:54]}  Nc6 {[%clk 0:02:56]} 12. b3 {[%clk 0:02:53]}  Re8 {[%clk 0:02:55]} 13. Nbd2 {[%clk 0:02:53]}  Bf8 {[%clk 0:02:55]} 14. Nf1 {[%clk 0:02:54]}  h6 {[%clk 0:02:55]} 15. Ng3 {[%clk 0:02:54]}  Be6 {[%clk 0:02:54]} 16. Bb2 {[%clk 0:02:54]}  Qc7 {[%clk 0:02:52]} 17. d4 {[%clk 0:02:43]}  exd4 {[%clk 0:02:47]} 18. cxd4 {[%clk 0:02:43]}  cxd4 {[%clk 0:02:38]} 19. Rc1 {[%clk 0:02:41]}  Nd7 {[%clk 0:02:13]} 20. Nxd4 {[%clk 0:02:33]}  Nxd4 {[%clk 0:02:13]} 21. Qxd4 {[%clk 0:02:34]}  Qc5 {[%clk 0:02:09]} 22. Qd2 {[%clk 0:02:29]}  Qg5 {[%clk 0:02:04]} 23. Qxg5 {[%clk 0:02:22]}  hxg5 {[%clk 0:02:04]} 24. Red1 {[%clk 0:02:19]}  Rad8 {[%clk 0:02:01]} 25. Bd3 {[%clk 0:02:11]}  Nc5 {[%clk 0:01:54]} 26. Bf1 {[%clk 0:02:11]}  g6 {[%clk 0:01:52]} 27. Bf6 {[%clk 0:02:06]}  Rc8 {[%clk 0:01:46]} 28. Bxg5 {[%clk 0:02:05]}  Rb8 {[%clk 0:01:27]} 29. Bf4 {[%clk 0:02:05]}  Rb6 {[%clk 0:01:26]} 30. Be3 {[%clk 0:01:57]}  Rb7 {[%clk 0:01:16]} 31. e5 {[%clk 0:01:54]}  a5 {[%clk 0:01:13]} 32. exd6 {[%clk 0:01:54]}  Nd7 {[%clk 0:01:13]} 33. Be2 {[%clk 0:01:49]}  a4 {[%clk 0:01:13]} 34. Bf3 {[%clk 0:01:49]}  Rbb8 {[%clk 0:01:10]} 35. Bc6 {[%clk 0:01:43]}  axb3 {[%clk 0:01:08]} 36. axb3 {[%clk 0:01:44]}  Red8 {[%clk 0:01:04]} 37. b4 {[%clk 0:01:44]}  Ne5 {[%clk 0:01:04]} 38. Ne4 {[%clk 0:01:36]}  f5 {[%clk 0:01:01]} 39. Ng5 {[%clk 0:01:36]}  Bc4 {[%clk 0:01:01]} 40. Bd5+ {[%clk 0:01:29]}  Bxd5 {[%clk 0:00:34]} 41. Rxd5 {[%clk 0:01:28]}  Bxd6 {[%clk 0:00:30]} 42. Ne6 {[%clk 0:01:27]}  Rd7 {[%clk 0:00:28]} 43. Rcd1 {[%clk 0:01:22]}  Nc4 {[%clk 0:00:16]} 44. Bc5 {[%clk 0:01:22]}  Re8 {[%clk 0:00:16]} 45. Ng5 {[%clk 0:01:15]}  Red8 {[%clk 0:00:15]} 46. Kf1 {[%clk 0:00:58]}  Nb2 {[%clk 0:00:07]} 47. R1d4 {[%clk 0:00:55]}  Nc4 {[%clk 0:00:04]} 48. Nf3 {[%clk 0:00:51]}  Kf7 {[%clk 0:00:02]} 49. g4 {[%clk 0:00:35]}  Ke6 {[%clk 0:00:02]} 50. gxf5+ {[%clk 0:00:32]}  gxf5 {[%clk 0:00:03]} 51. Ng5+ {[%clk 0:00:26]}  Kf6 {[%clk 0:00:03]} 52. h4 {[%clk 0:00:26]}  Rg8 {[%clk 0:00:01]} 53. Bxd6 {[%clk 0:00:24]}  Rgd8 {[%clk 0:00:02]} 54. Nh7+ {[%clk 0:00:07]}  Kg6 {[%clk 0:00:02]} 55. Ng5 {[%clk 0:00:05]}  Rxd6 {[%clk 0:00:02]} 56. Rxd6+ {[%clk 0:00:05]}  Rxd6 {[%clk 0:00:03]} 57. Rxd6+ {[%clk 0:00:06]}  Nxd6 {[%clk 0:00:04]} 58. Ke2 {[%clk 0:00:05]}  Kh5 {[%clk 0:00:04]} 59. Nf3 {[%clk 0:00:05]}  Ne4 {[%clk 0:00:04]} 60. Ke3 {[%clk 0:00:05]}  Kg4 {[%clk 0:00:05]} 61. Nd4 {[%clk 0:00:05]}  Nc3 {[%clk 0:00:02]} 62. Nxb5 {[%clk 0:00:05]}  Nxb5 {[%clk 0:00:02]} 63. h5 {[%clk 0:00:04]}  Kxh5 {[%clk 0:00:02]} 64. Kf4 {[%clk 0:00:04]}  Kg6 {[%clk 0:00:03]} 65. f3 {[%clk 0:00:05]}  Kf6 {[%clk 0:00:03]} 66. Ke3 {[%clk 0:00:05]}  Ke5 {[%clk 0:00:04]} 67. f4+ {[%clk 0:00:05]}  Kd5 {[%clk 0:00:04]} 68. Kd3 {[%clk 0:00:06]}  Nd6 {[%clk 0:00:05]} 69. Kc3 {[%clk 0:00:07]}  Nb5+ {[%clk 0:00:04]} 70. Kd3 {[%clk 0:00:07]}  Nd4 {[%clk 0:00:05]} 71. Ke3 {[%clk 0:00:07]}  Ne6 {[%clk 0:00:06]} 72. Kd3 {[%clk 0:00:08]}  Nxf4+ {[%clk 0:00:06]} 73. Ke3 {[%clk 0:00:09]}  Ne6 {[%clk 0:00:07]} 74. Kf3 {[%clk 0:00:09]}  Kc4 {[%clk 0:00:07]} 75. Ke3 {[%clk 0:00:10]}  Kxb4 {[%clk 0:00:08]} 76. Kd3 {[%clk 0:00:10]}  Kc5 {[%clk 0:00:08]} 77. Ke3 {[%clk 0:00:11]}  Kd5 {[%clk 0:00:09]} 78. Kf3 {[%clk 0:00:12]}  Ke5 {[%clk 0:00:10]} 79. Ke3 {[%clk 0:00:13]}  f4+ {[%clk 0:00:11]} 80. Kf3 {[%clk 0:00:13]}  Kf5 {[%clk 0:00:12]} 81. Kf2 {[%clk 0:00:14]}  Nf8 {[%clk 0:00:12]} 82. Kf3 {[%clk 0:00:15]}  Nd7 {[%clk 0:00:13]} 83. Kf2 {[%clk 0:00:15]}  Nb8 {[%clk 0:00:14]} 84. Kf3 {[%clk 0:00:16]}  Na6 {[%clk 0:00:14]} 85. Kf2 {[%clk 0:00:17]}  Nc7 {[%clk 0:00:15]} 86. Kf3 {[%clk 0:00:17]}  Na8 {[%clk 0:00:16]} 87. Kf2 {[%clk 0:00:18]}  Nb6 {[%clk 0:00:17]} 88. Kf3 {[%clk 0:00:19]}  Nc8 {[%clk 0:00:18]} 89. Kf2 {[%clk 0:00:19]}  Nd6 {[%clk 0:00:19]} 90. Kf3 {[%clk 0:00:20]}  Ne8 {[%clk 0:00:20]} 91. Kf2 {[%clk 0:00:21]}  Ng7 {[%clk 0:00:21]} 92. Kf3 {[%clk 0:00:21]}  Ke5 {[%clk 0:00:22]} 93. Kf2 {[%clk 0:00:22]}  Ke4 {[%clk 0:00:22]} 94. Ke2 {[%clk 0:00:22]}  Nf5 {[%clk 0:00:23]} 95. Kf2 {[%clk 0:00:23]}  f3 {[%clk 0:00:24]} 96. Kf1 {[%clk 0:00:23]}  Kf4 {[%clk 0:00:24]} 97. Ke1 {[%clk 0:00:24]}  Ke3 {[%clk 0:00:25]} 98. Kf1 {[%clk 0:00:25]}  Nd6 {[%clk 0:00:26]} 99. Ke1 {[%clk 0:00:24]}  Nc8 {[%clk 0:00:27]} 100. Kf1 {[%clk 0:00:25]}  Na7 {[%clk 0:00:28]} 101. Ke1 {[%clk 0:00:26]}  Nb5 {[%clk 0:00:29]} 102. Kf1 {[%clk 0:00:27]}  Nc7 {[%clk 0:00:30]} 103. Ke1 {[%clk 0:00:28]}  Ne8 {[%clk 0:00:31]} 104. Kf1 {[%clk 0:00:28]}  Nf6 {[%clk 0:00:32]} 105. Ke1 {[%clk 0:00:29]}  Ng8 {[%clk 0:00:33]} 106. Kf1 {[%clk 0:00:29]}  Nh6 {[%clk 0:00:33]} 107. Ke1 {[%clk 0:00:30]}  Ng4 {[%clk 0:00:34]} 108. Kf1 {[%clk 0:00:31]}  Nh2+ {[%clk 0:00:34]} 109. Kg1 {[%clk 0:00:30]}  f2+ {[%clk 0:00:34]} 110. Kxh2 {[%clk 0:00:31]}  f1=Q {[%clk 0:00:35]} 111. Kg3 {[%clk 0:00:31]}  Ke4 {[%clk 0:00:35]} 112. Kh2 {[%clk 0:00:31]}  Qf6 {[%clk 0:00:32]} 113. Kg2 {[%clk 0:00:31]}  Qg5+ {[%clk 0:00:33]} 114. Kf2 {[%clk 0:00:32]}  Qg4 {[%clk 0:00:33]} 115. Kf1 {[%clk 0:00:32]}  Qh3+ {[%clk 0:00:32]} 116. Kf2 {[%clk 0:00:32]}  Qh2+ {[%clk 0:00:32]} 117. Kf1 {[%clk 0:00:32]}  Ke3 {[%clk 0:00:33]} 118. Ke1 {[%clk 0:00:33]}  Qe2# {[%clk 0:00:33]} 0-1